bitfinex/quotes_BTCUSD_20251012
["timestamp","ask_amount","ask_price","bid_price","bid_amount"]
[1760288562011,5.2758679,114210.0,114200.0,0.00318855]
[1760288562236,5.6158679,114210.0,114200.0,1e-08]
[1760288562444,5.7742979,114210.0,114200.0,1e-08]
[1760288563116,5.7713979,114210.0,114200.0,1e-08]
[1760288563999,5.57032925,114170.0,114160.0,0.07162362]
[1760288564234,0.61715925,114170.0,114160.0,0.07162362]
[1760288564446,5.67520805,114150.0,114140.0,0.07162362]
[1760288564649,5.28372805,114150.0,114140.0,0.07162362]
[1760288564871,0.5152234,114140.0,114130.0,0.03921]
[1760288565082,0.5152234,114140.0,114130.0,0.03929716]
[1760288565083,0.54022339,114140.0,114130.0,0.03929716]
[1760288565610,0.54022339,114140.0,114130.0,0.10389716]
[1760288566291,0.54022339,114140.0,114130.0,0.10489716]
[1760288566495,0.64874339,114140.0,114130.0,0.04029716]
[1760288566675,0.73932339,114140.0,114130.0,0.00148716]
[1760288567231,0.74706329,114140.0,114130.0,0.00148716]
[1760288567430,0.65648329,114140.0,114130.0,0.00048716]
[1760288567631,0.65648329,114140.0,114130.0,0.03929716]
[1760288567918,0.65648329,114140.0,114130.0,0.04029716]
[1760288568330,0.54796329,114140.0,114130.0,0.10489716]
[1760288569581,0.65648329,114140.0,114130.0,0.04029716]
[1760288569791,0.65648329,114140.0,114130.0,0.00148716]
[1760288570002,0.65648329,114140.0,114130.0,0.00543873]
[1760288570320,0.59479329,114140.0,114130.0,0.10884873]
[1760288570527,0.54796329,114140.0,114130.0,0.10884873]
[1760288570751,0.54796329,114140.0,114130.0,0.38277749]
[1760288571000,0.02499999,114140.0,114130.0,0.38277749]
[1760288571210,0.2001929,114160.0,114140.0,0.17520963]
[1760288571406,0.2001929,114160.0,114150.0,0.27449805]
[1760288571621,0.34,114160.0,114150.0,0.37318805]
[1760288571845,0.2470078,114170.0,114150.0,0.3731874]
[1760288572059,0.02499999,114170.0,114160.0,0.20988271]
[1760288572253,0.20016259,114180.0,114160.0,0.37317271]
[1760288572484,0.20812747,114180.0,114170.0,0.03881]
[1760288572660,0.20812747,114180.0,114170.0,0.10341]
[1760288572986,0.03296499,114180.0,114170.0,0.37727736]
[1760288573176,0.20812701,114180.0,114170.0,0.10341]
[1760288573347,0.20812701,114180.0,114170.0,0.27858736]
[1760288573521,0.20812701,114180.0,114170.0,0.38017736]
[1760288573522,0.02499999,114180.0,114170.0,0.38017736]
[1760288573722,0.02499999,114180.0,114170.0,0.38026452]
[1760288573961,0.20016201,114180.0,114170.0,0.38026452]
[1760288574281,0.20810044,114180.0,114170.0,0.38026452]
[1760288574502,0.20810044,114180.0,114170.0,0.28157452]
[1760288575026,0.20810044,114180.0,114170.0,0.10639716]
[1760288576199,0.20810044,114180.0,114170.0,0.28157452]
[1760288576398,0.20810044,114180.0,114170.0,0.10639716]
[1760288577677,0.60979044,114180.0,114170.0,0.10639716]
[1760288578022,0.74720044,114180.0,114170.0,0.00298716]
[1760288578157,5.74720044,114180.0,114170.0,0.00298716]
[1760288579718,0.74720044,114180.0,114170.0,0.00298716]
[1760288580139,5.74720044,114180.0,114170.0,0.00298716]
[1760288580979,5.77735234,114180.0,114170.0,1e-08]
[1760288582308,5.77835234,114180.0,114170.0,1e-08]
[1760288582971,0.38320045,114180.0,114170.0,1e-08]
[1760288583190,0.18410045,114180.0,114170.0,0.10425294]
[1760288583415,0.20910044,114180.0,114170.0,0.10425294]
[1760288583861,0.001,114180.0,114170.0,0.3701303]
[1760288584079,0.20889553,114200.0,114180.0,0.17516015]
[1760288584080,0.17514731,114190.0,114180.0,0.17516015]
[1760288584289,0.20889553,114200.0,114180.0,0.36430015]
[1760288584720,0.02499999,114200.0,114180.0,0.36430015]
[1760288584914,0.02499999,114200.0,114190.0,0.17514668]
[1760288585119,0.13247999,114190.0,114180.0,0.03469]
[1760288585364,0.17516202,114180.0,114170.0,0.03881001]
[1760288585567,0.36499999,114190.0,114180.0,0.03469]
[1760288585830,0.54014667,114190.0,114180.0,0.18914]
[1760288586161,0.54014667,114190.0,114180.0,0.09844]
[1760288586384,6.04016201,114180.0,114170.0,1e-08]
[1760288586595,5.58759201,114180.0,114170.0,1e-08]
[1760288586840,5.73907201,114180.0,114170.0,1e-08]
[1760288587287,5.64826201,114180.0,114170.0,1e-08]
[1760288588693,5.73877201,114180.0,114170.0,1e-08]
[1760288589803,0.51520805,114150.0,114140.0,0.03469]
[1760288590028,5.54022339,114140.0,114130.0,0.11410362]
[1760288590254,5.64975339,114140.0,114130.0,0.04256718]
[1760288590505,5.74118339,114140.0,114130.0,0.04256718]
[1760288590741,0.74118339,114140.0,114130.0,0.04256718]
[1760288590978,0.74118339,114140.0,114120.0,1e-08]
[1760288590979,0.20023875,114130.0,114120.0,1e-08]
[1760288591210,0.20023875,114130.0,114110.0,1e-08]
[1760288591211,0.5402541,114120.0,114110.0,1e-08]
[1760288591437,5.7412141,114120.0,114110.0,8.698e-05]
[1760288591879,0.7412141,114120.0,114110.0,8.698e-05]
[1760288592101,0.5402541,114120.0,114110.0,0.06383698]
[1760288592530,0.6497841,114120.0,114110.0,8.698e-05]
[1760288592760,5.7412141,114120.0,114110.0,8.698e-05]
[1760288592975,5.7412141,114120.0,114110.0,0.06383698]
[1760288592976,0.2002541,114120.0,114110.0,0.06383698]
[1760288593214,0.02499999,114130.0,114110.0,0.30847645]
[1760288593436,0.54024486,114130.0,114120.0,0.03469]
[1760288593887,0.54024486,114130.0,114120.0,0.27369411]
[1760288594103,0.25639844,114150.0,114130.0,0.17522617]
[1760288594339,0.20896844,114150.0,114140.0,0.09843]
[1760288594553,0.65849844,114150.0,114140.0,0.03468]
[1760288595226,0.17523057,114140.0,114130.0,0.17523876]
[1760288595459,0.25639844,114150.0,114140.0,0.03468]
[1760288595661,0.20896844,114150.0,114140.0,0.03468]
[1760288595815,0.31849844,114150.0,114140.0,0.03468]
[1760288596067,0.20896844,114150.0,114140.0,0.09843]
[1760288596246,0.20896844,114150.0,114140.0,0.2736534]
[1760288596452,5.02499999,114160.0,114140.0,0.3430234]
[1760288596627,0.02499999,114170.0,114150.0,0.24457805]
[1760288596828,0.20017789,114170.0,114160.0,0.03469]
[1760288597563,0.24760789,114170.0,114160.0,0.03469]
[1760288597761,0.24760789,114170.0,114160.0,0.20988271]
[1760288598233,0.20017789,114170.0,114160.0,0.09844]
[1760288598643,0.17519271,114160.0,114140.0,0.03468]
[1760288598873,0.24763804,114150.0,114140.0,0.03468]
[1760288599034,0.20020804,114150.0,114140.0,0.09843]
[1760288599236,0.02499999,114150.0,114140.0,0.3430234]
[1760288599448,0.20020804,114150.0,114140.0,0.3430234]
[1760288599685,0.02499999,114160.0,114150.0,0.17520805]
[1760288599918,0.17519344,114160.0,114150.0,0.06375]
[1760288600140,0.30972343,114160.0,114140.0,0.21090318]
[1760288600351,0.17520805,114150.0,114140.0,0.28027318]
[1760288600551,0.20019343,114160.0,114140.0,0.3430234]
[1760288600758,0.17520805,114150.0,114140.0,0.3430234]
[1760288601181,0.17520805,114150.0,114140.0,0.17118676]
[1760288601423,0.17520805,114150.0,114140.0,0.27704016]
[1760288602094,0.20019343,114160.0,114140.0,0.34641016]
[1760288602365,0.20019343,114160.0,114140.0,0.3440234]
[1760288602804,0.34,114160.0,114150.0,0.24457805]
[1760288603035,0.02499999,114170.0,114160.0,0.17519271]
[1760288603257,0.20016201,114180.0,114170.0,0.17517736]
[1760288603469,0.02514925,114180.0,114170.0,0.06375]
[1760288603775,0.20031127,114180.0,114170.0,0.06375]
[1760288603968,0.20031127,114180.0,114170.0,0.23892736]
[1760288604389,0.20031127,114180.0,114170.0,0.30829736]
[1760288604390,0.00014926,114180.0,114170.0,0.30829736]
[1760288604591,0.00014926,114180.0,114160.0,0.03469]
[1760288604801,0.24774195,114180.0,114160.0,0.20988245]
[1760288605020,0.24774195,114180.0,114170.0,0.17517736]
[1760288605229,0.24774195,114180.0,114160.0,0.27925245]
[1760288605363,0.20031195,114180.0,114170.0,0.23892736]
[1760288605792,0.02514925,114180.0,114170.0,0.23892736]
[1760288606011,0.20031127,114180.0,114170.0,0.30829736]
[1760288606393,0.02514925,114180.0,114170.0,0.30829736]
[1760288606590,0.17531128,114180.0,114170.0,0.30929736]
[1760288606794,0.20031127,114180.0,114170.0,0.30929736]
[1760288606993,0.00014926,114180.0,114170.0,0.30929736]
[1760288607644,0.00014926,114180.0,114170.0,0.39882688]
[1760288611501,0.00014926,114180.0,114170.0,0.66157688]
[1760288613049,0.00014926,114180.0,114170.0,0.57204736]
[1760288613283,0.17531128,114180.0,114170.0,0.50437029]
[1760288613486,0.17531128,114180.0,114170.0,0.32919293]
[1760288614336,0.17531128,114180.0,114170.0,0.50437029]
[1760288614957,0.22132128,114180.0,114170.0,0.50437029]
[1760288616688,0.17531128,114180.0,114170.0,0.50437029]
[1760288617058,0.17531128,114180.0,114170.0,0.57374029]
[1760288617789,0.17531128,114180.0,114170.0,0.32919293]
[1760288618388,0.22132128,114180.0,114170.0,0.32919293]
[1760288618956,5.74231127,114180.0,114170.0,0.26544293]
[1760288619323,0.74231127,114180.0,114170.0,0.26544293]
[1760288619672,5.74231127,114180.0,114170.0,0.26544293]
[1760288619888,0.74231127,114180.0,114170.0,0.26544293]
[1760288620019,5.74231127,114180.0,114170.0,0.26544293]
[1760288621478,0.74231127,114180.0,114170.0,0.26544293]
[1760288621676,5.74231127,114180.0,114170.0,0.26444293]
[1760288622282,0.74231127,114180.0,114170.0,0.26444293]
[1760288622498,0.00014926,114180.0,114170.0,0.60770029]
[1760288625132,0.00014926,114180.0,114170.0,0.60870029]
[1760288626790,0.00014926,114180.0,114170.0,0.53933029]
[1760288627003,0.00014926,114180.0,114170.0,0.60870029]
[1760288629133,0.28868128,114180.0,114170.0,0.47531029]
[1760288629345,0.00014926,114180.0,114170.0,0.54021029]
[1760288629963,0.00014926,114180.0,114170.0,0.60958029]
[1760288631329,0.00014926,114180.0,114170.0,0.69910981]
[1760288631975,2.775e-05,114180.0,114170.0,0.69910981]
[1760288632171,2.775e-05,114180.0,114170.0,0.72926171]
[1760288632379,2.775e-05,114180.0,114170.0,1.50021738]
[1760288632585,0.17510096,114220.0,114180.0,0.1838872]
[1760288632821,0.17559914,114220.0,114210.0,0.09959]
[1760288633325,0.51559914,114220.0,114210.0,0.09959]
[1760288633882,0.17513134,114200.0,114190.0,0.00056421]
[1760288634193,0.24874133,114200.0,114190.0,0.00056421]
[1760288634713,0.24874133,114200.0,114190.0,0.06546421]
[1760288634920,5.74566133,114200.0,114190.0,0.00056421]
[1760288636056,5.74566133,114200.0,114190.0,0.00156421]
[1760288636435,5.74566133,114200.0,114190.0,0.00056421]
[1760288636643,0.65350133,114200.0,114190.0,0.00056421]
[1760288637189,5.74566133,114200.0,114190.0,0.00056421]
[1760288638523,0.65350133,114200.0,114190.0,0.00056421]
[1760288639840,0.74602133,114200.0,114190.0,0.00056421]
[1760288640044,0.65350133,114200.0,114190.0,0.00056421]
[1760288640656,0.74602133,114200.0,114190.0,0.00056421]
[1760288640861,0.65350133,114200.0,114190.0,0.00056421]
[1760288641065,0.65350133,114200.0,114190.0,0.06392421]
[1760288641278,0.65350133,114200.0,114190.0,0.00056421]
[1760288641490,0.54013133,114200.0,114190.0,0.39601421]
[1760288641745,0.54013133,114200.0,114190.0,0.32664421]
[1760288642162,0.54013133,114200.0,114190.0,0.26328421]
[1760288642163,0.74582133,114200.0,114190.0,0.26328421]
[1760288642579,5.74582133,114200.0,114190.0,0.26328421]
[1760288644224,5.74582133,114200.0,114160.0,0.10631362]
[1760288644353,0.59013735,114170.0,114160.0,0.10631362]
[1760288644911,0.59013735,114170.0,114160.0,0.03469]
[1760288645128,0.65334735,114170.0,114160.0,0.03469]
[1760288645548,0.65334735,114170.0,114160.0,0.03483926]
[1760288647702,0.59013735,114170.0,114160.0,0.09819926]
[1760288647915,0.65334735,114170.0,114160.0,0.09819926]
[1760288648542,0.31765569,114180.0,114170.0,0.17517736]
[1760288648543,0.02499999,114180.0,114170.0,0.17517736]
[1760288648748,0.20014667,114190.0,114180.0,0.17515495]
[1760288648971,0.54014667,114190.0,114180.0,0.16741]
[1760288649234,0.20014667,114190.0,114180.0,0.16741]
[1760288649450,0.54014667,114190.0,114180.0,0.09804]
[1760288650742,0.20888789,114200.0,114180.0,0.34257148]
[1760288650945,0.17514668,114190.0,114180.0,0.34257148]
[1760288651768,0.20888789,114200.0,114180.0,0.34257148]
[1760288652179,0.17514668,114190.0,114180.0,0.34257148]
[1760288652383,0.17514668,114190.0,114180.0,0.16741]
[1760288652563,0.17514668,114190.0,114180.0,0.27320202]
[1760288653942,0.17514668,114190.0,114180.0,0.34257202]
[1760288654185,0.17514668,114190.0,114180.0,0.27320202]
[1760288654340,0.17514668,114190.0,114180.0,0.09804]
[1760288654885,0.17514668,114190.0,114180.0,0.27320202]
[1760288655855,0.38083668,114190.0,114180.0,0.03468]
[1760288656125,0.38083668,114190.0,114160.0,0.2187916]
[1760288656126,0.20017568,114180.0,114160.0,0.2187916]
[1760288656407,0.20017568,114180.0,114170.0,0.00112867]
[1760288656705,0.20017568,114180.0,114170.0,0.06448867]
[1760288657124,0.20017568,114180.0,114170.0,0.23966603]
[1760288657330,0.20017568,114180.0,114170.0,0.06448867]
[1760288657659,0.20017568,114180.0,114170.0,0.23966603]
[1760288658129,0.208904,114190.0,114170.0,0.30903603]
[1760288658337,0.208904,114190.0,114170.0,0.30790736]
[1760288658507,0.208904,114190.0,114180.0,0.03468]
[1760288658745,0.208904,114190.0,114180.0,0.20984202]
[1760288658955,0.208904,114190.0,114180.0,0.09804]
[1760288659185,0.20888789,114200.0,114180.0,0.34257202]
[1760288659392,0.17514668,114190.0,114180.0,0.34257202]
[1760288660548,0.17514668,114190.0,114180.0,0.27320202]
[1760288663400,0.31331667,114190.0,114180.0,0.09804]
[1760288663608,0.31331667,114190.0,114180.0,0.03468]
[1760288663813,0.31331667,114190.0,114180.0,0.09804]
[1760288664028,0.31331667,114190.0,114180.0,0.09860428]
[1760288664237,0.31331667,114190.0,114180.0,0.2737663]
[1760288664238,0.20014667,114190.0,114180.0,0.2737663]
[1760288664448,0.20888789,114200.0,114180.0,0.3431363]
[1760288664704,0.02499999,114200.0,114190.0,0.06937]
[1760288664915,0.02499999,114200.0,114190.0,0.30787668]
[1760288665296,0.20013133,114200.0,114190.0,0.30787668]
[1760288666334,0.02499999,114200.0,114190.0,0.30787668]
[1760288666536,0.58396092,114220.0,114210.0,0.17511601]
[1760288666537,0.00206062,114220.0,114210.0,0.17511601]
[1760288666689,0.00206062,114220.0,114210.0,0.34253601]
[1760288666690,0.20216129,114220.0,114210.0,0.34253601]
[1760288666909,0.00206062,114220.0,114210.0,0.34253601]
[1760288667108,0.00206062,114220.0,114210.0,0.27316601]
[1760288667109,0.34206062,114220.0,114210.0,0.27316601]
[1760288667311,0.54216129,114220.0,114210.0,0.09805]
[1760288667634,0.20014477,114200.0,114180.0,0.28201893]
[1760288667929,0.25010477,114200.0,114190.0,0.06336]
[1760288669079,0.20014477,114200.0,114190.0,0.23850668]
[1760288669285,0.26335477,114200.0,114190.0,0.06336]
[1760288669464,0.31331477,114200.0,114190.0,0.06336]
[1760288669686,0.31331477,114200.0,114190.0,0.30787668]
[1760288669687,0.20014477,114200.0,114190.0,0.30787668]
[1760288669813,0.20014477,114200.0,114190.0,0.23850668]
[1760288670750,0.30811477,114200.0,114190.0,0.24090668]
[1760288670957,0.20014477,114200.0,114190.0,0.24090668]
[1760288671679,0.26029477,114200.0,114190.0,0.06576]
[1760288671817,0.20014477,114200.0,114190.0,0.24090668]
[1760288673128,0.20014477,114200.0,114190.0,0.06576]
[1760288673372,0.40495477,114200.0,114180.0,0.21040368]
[1760288674066,0.30811477,114200.0,114180.0,0.21040368]
[1760288674301,0.20013133,114200.0,114190.0,0.24090668]
[1760288674725,0.02499999,114200.0,114190.0,0.31027668]
[1760288675155,0.36499999,114210.0,114200.0,0.17513134]
[1760288675364,0.55067591,114220.0,114200.0,0.34495134]
[1760288675571,0.54266439,114220.0,114210.0,0.17511601]
[1760288675788,0.36755879,114220.0,114210.0,0.24087601]
[1760288676002,0.54265947,114220.0,114210.0,0.24087601]
[1760288676485,0.54265947,114220.0,114210.0,0.32842]
[1760288676934,0.54265947,114220.0,114210.0,0.50353601]
[1760288678932,0.36755879,114220.0,114210.0,0.50353601]
[1760288679151,0.0025588,114220.0,114210.0,0.57290601]
[1760288679856,0.0025588,114220.0,114210.0,0.66243553]
[1760288680061,0.20005469,114250.0,114240.0,0.17507002]
[1760288680270,0.54020411,114250.0,114240.0,0.24083002]
[1760288680482,0.54020411,114250.0,114240.0,0.27551002]
[1760288680717,0.54020411,114250.0,114240.0,0.53811002]
[1760288682966,0.00014942,114250.0,114240.0,0.60748002]
[1760288684942,4.6204166,114280.0,114260.0,0.00875196]
[1760288685163,0.05451828,114330.0,114260.0,0.00875196]
[1760288685164,0.02361525,114350.0,114330.0,0.17493221]
[1760288685390,0.02361525,114350.0,114340.0,1.31289743]
[1760288685391,0.00034936,114350.0,114340.0,1.31289743]
[1760288685595,0.0002,114360.0,114350.0,0.92463651]
[1760288685893,0.00069768,114360.0,114350.0,1.80582403]
[1760288686107,0.00069768,114360.0,114350.0,1.86866403]
[1760288686305,0.00858403,114360.0,114350.0,1.31919651]
[1760288686507,0.00858403,114360.0,114350.0,0.56946161]
[1760288686724,0.00858403,114360.0,114350.0,0.26235]
[1760288686883,5.90393735,114360.0,114350.0,0.26235]
[1760288687100,5.3087499,114360.0,114350.0,0.27041489]
[1760288687297,5.22905103,114360.0,114350.0,0.27041489]
[1760288687904,5.40393735,114360.0,114350.0,0.27041489]
[1760288688083,5.22905103,114360.0,114350.0,0.26235]
[1760288688406,0.00958403,114360.0,114350.0,0.50009161]
[1760288688822,0.00958403,114360.0,114350.0,0.56946161]
[1760288689246,0.00858403,114360.0,114350.0,0.56946161]
[1760288689449,0.00958403,114360.0,114350.0,0.56946161]
[1760288690692,0.00858403,114360.0,114350.0,0.56946161]
[1760288692122,0.0002,114370.0,114360.0,0.17488632]
[1760288692353,0.0002,114370.0,114360.0,0.57141822]
[1760288692553,0.0002,114370.0,114360.0,0.72378774]
[1760288692925,0.0002,114390.0,114380.0,0.17485574]
[1760288693276,0.0002,114390.0,114380.0,0.56134526]
[1760288693277,0.00034922,114390.0,114380.0,0.56134526]
[1760288693605,0.00034922,114390.0,114380.0,0.69355526]
[1760288696063,0.00034922,114390.0,114380.0,0.69455526]
[1760288699031,0.10034922,114390.0,114380.0,0.69455526]
[1760288699467,0.10203768,114390.0,114380.0,0.69455526]
[1760288700392,0.16654768,114390.0,114380.0,0.51969952]
[1760288700590,0.17490161,114350.0,114330.0,0.03673732]
[1760288700911,0.22135302,114370.0,114340.0,0.13083]
[1760288701085,0.23009657,114370.0,114350.0,0.06937]
[1760288701289,0.18362657,114370.0,114360.0,0.09614]
[1760288701853,0.52362657,114370.0,114360.0,0.09614]
[1760288702276,0.57009657,114370.0,114360.0,0.03468]
[1760288702578,0.63460657,114370.0,114360.0,0.03468]
[1760288702756,0.17490161,114350.0,114340.0,0.26238]
[1760288702963,0.17490161,114350.0,114340.0,0.39321]
[1760288703984,0.17489335,114360.0,114340.0,0.56812691]
[1760288704155,0.17489335,114360.0,114350.0,0.03468]
[1760288704367,0.17489335,114360.0,114350.0,0.09614]
[1760288704581,0.17489335,114360.0,114350.0,0.03468]
[1760288704582,0.62587335,114360.0,114350.0,0.03468]
[1760288704984,0.51489335,114360.0,114350.0,0.09614]
[1760288705946,0.56136335,114360.0,114350.0,0.03468]
[1760288706159,0.51489335,114360.0,114350.0,0.09614]
[1760288706388,0.34,114360.0,114350.0,0.09614]
[1760288706606,0.51488632,114360.0,114350.0,0.09614]
[1760288707704,0.56135632,114360.0,114350.0,0.09614]
[1760288708138,0.56135632,114360.0,114350.0,0.03468]
[1760288708139,0.62586632,114360.0,114350.0,0.03468]
[1760288708380,0.56135632,114360.0,114350.0,0.03468]
[1760288708852,0.56135632,114360.0,114350.0,0.09614]
[1760288708853,0.51488632,114360.0,114350.0,0.09614]
[1760288710177,0.51488632,114360.0,114350.0,0.27104161]
[1760288710382,0.34,114360.0,114350.0,0.34041161]
[1760288710821,0.17488632,114360.0,114350.0,0.09614]
[1760288711033,0.28586632,114360.0,114350.0,0.03468]
[1760288711244,0.17488632,114360.0,114350.0,0.27104161]
[1760288711465,0.17488632,114360.0,114350.0,0.34041161]
[1760288711879,0.5619048,114370.0,114350.0,0.34041161]
[1760288712101,0.5619048,114370.0,114350.0,0.27104161]
[1760288712345,0.17488632,114360.0,114350.0,0.34041161]
[1760288712562,0.17488632,114360.0,114350.0,0.27104161]
[1760288713394,0.17488632,114360.0,114350.0,0.09614]
[1760288713552,0.17488632,114360.0,114350.0,0.27104161]
[1760288713763,0.17488632,114360.0,114350.0,0.34041161]
[1760288714559,0.00056292,114370.0,114360.0,0.17488632]
[1760288714827,0.00056292,114370.0,114360.0,0.30571632]
[1760288714986,0.00056292,114370.0,114360.0,0.65757584]
[1760288715367,0.00056292,114370.0,114360.0,0.68772774]
[1760288716765,0.00056292,114370.0,114360.0,1.02772774]
[1760288717584,0.00056292,114370.0,114360.0,1.02872774]
[1760288718145,0.00056292,114370.0,114360.0,0.68872774]
[1760288718353,0.00056292,114370.0,114360.0,0.56904632]
[1760288718558,0.17543395,114370.0,114360.0,0.32479]
[1760288719822,0.17543395,114370.0,114360.0,0.49967632]
[1760288720018,0.17543395,114370.0,114360.0,0.32479]
[1760288720234,0.17543395,114370.0,114360.0,0.49967632]
[1760288720667,0.17543395,114370.0,114360.0,0.56904632]
[1760288721200,0.17543395,114370.0,114360.0,0.32479]
[1760288722135,0.17543395,114370.0,114360.0,0.56904632]
[1760288722758,0.17543395,114370.0,114360.0,0.49967632]
[1760288722970,0.17543395,114370.0,114360.0,0.32479]
[1760288723416,0.17543395,114370.0,114360.0,0.49967632]
[1760288723851,0.17543395,114370.0,114360.0,0.56904632]
[1760288724050,0.00056292,114370.0,114360.0,0.56904632]
[1760288724481,0.00056292,114370.0,114360.0,0.49967632]
[1760288725089,0.28641395,114370.0,114360.0,0.26333]
[1760288725865,0.22190395,114370.0,114360.0,0.32379]
[1760288726091,0.00056292,114370.0,114360.0,0.49867632]
[1760288726290,0.00056292,114370.0,114360.0,0.56804632]
[1760288726405,0.00056292,114370.0,114360.0,0.68772774]
[1760288726809,0.00056292,114370.0,114360.0,0.65757584]
[1760288727488,0.00056292,114370.0,114360.0,0.56804632]
[1760288728793,0.00056292,114370.0,114360.0,0.56904632]
[1760288729178,0.00056292,114370.0,114360.0,0.65857584]
[1760288729371,0.00056292,114370.0,114360.0,0.68872774]
[1760288730183,0.00056292,114370.0,114360.0,1.02872774]
[1760288730374,1e-08,114370.0,114360.0,1.82098341]
[1760288730742,0.0002,114400.0,114370.0,0.19985749]
[1760288731082,0.07182362,114410.0,114400.0,0.17482517]
[1760288731298,0.07182362,114410.0,114400.0,0.65911469]
[1760288731502,0.00245078,114410.0,114400.0,0.65911469]
[1760288733014,0.00245078,114410.0,114400.0,0.66011469]
[1760288733417,0.0002,114420.0,114410.0,0.20496179]
[1760288733650,0.0002,114420.0,114410.0,0.70205131]
[1760288733863,0.0002,114420.0,114410.0,1.10555131]
[1760288734054,0.00027,114430.0,114420.0,0.20494651]
[1760288734200,0.00027,114430.0,114420.0,0.62568603]
[1760288734412,0.00027,114430.0,114420.0,1.02918603]
[1760288735600,0.00027,114430.0,114420.0,1.03018603]
[1760288735773,0.00027,114430.0,114420.0,1.03118603]
[1760288737938,0.17504934,114430.0,114420.0,0.39671]
[1760288738142,0.00027,114430.0,114420.0,0.57150461]
[1760288740094,0.00027,114430.0,114420.0,0.69118603]
[1760288740546,0.001395,114430.0,114420.0,0.69118603]
[1760288741302,0.001395,114430.0,114420.0,0.66103413]
[1760288741504,0.17617434,114430.0,114420.0,0.48623952]
[1760288741708,0.17617434,114430.0,114420.0,0.32769]
[1760288741913,0.17617434,114430.0,114420.0,0.57150461]
[1760288742109,0.17617434,114430.0,114420.0,0.39671]
[1760288742686,0.001395,114430.0,114420.0,0.57150461]
[1760288742860,0.17617434,114430.0,114420.0,0.57150461]
[1760288744328,0.001395,114430.0,114420.0,0.57150461]
[1760288744989,0.001395,114430.0,114420.0,0.69118603]
[1760288746820,0.001395,114430.0,114420.0,0.75596588]
[1760288753178,0.001395,114430.0,114420.0,1.09596588]
[1760288753387,0.001395,114430.0,114420.0,1.09546588]
[1760288756497,0.001395,114430.0,114420.0,1.64258754]
[1760288756817,0.001395,114430.0,114420.0,1.66758753]
[1760288758128,1e-08,114430.0,114420.0,1.66758753]
[1760288758335,0.0002,114450.0,114440.0,0.20491596]
[1760288758537,0.00034922,114450.0,114440.0,0.59177548]
[1760288758739,0.00034922,114450.0,114440.0,0.72623548]
[1760288759649,0.00034922,114450.0,114440.0,1.29935713]
[1760288759786,0.00034922,114450.0,114440.0,0.75223547]
[1760288759989,0.00034922,114450.0,114440.0,0.75323547]
[1760288760398,0.00034922,114450.0,114440.0,0.75223547]
[1760288760824,0.00034922,114450.0,114440.0,0.75323547]
[1760288761029,0.00034922,114450.0,114440.0,1.29935713]
[1760288761187,0.00034922,114450.0,114440.0,0.75323547]
[1760288764223,0.00147391,114450.0,114440.0,0.75323547]
[1760288765072,0.00147391,114450.0,114440.0,0.52331952]
[1760288765282,0.3853127,114450.0,114440.0,0.26465]
[1760288765723,0.2854927,114450.0,114440.0,0.26465]
[1760288765935,0.2854927,114450.0,114440.0,0.26365]
[1760288766141,0.7253127,114450.0,114440.0,0.26365]
[1760288766347,5.3957297,114450.0,114440.0,0.26365]
[1760288766758,0.6254927,114450.0,114440.0,0.26265]
[1760288767179,0.7253127,114450.0,114440.0,0.26265]
[1760288768554,0.6254927,114450.0,114440.0,0.26265]
[1760288768789,5.3957297,114450.0,114440.0,0.26265]
[1760288770126,0.7253127,114450.0,114440.0,0.26265]
[1760288770341,5.4258816,114450.0,114440.0,1e-08]
[1760288770545,0.7554646,114450.0,114440.0,1e-08]
[1760288770757,5.4258816,114450.0,114440.0,1e-08]
[1760288771195,5.4268816,114450.0,114440.0,1e-08]
[1760288771400,0.85546459,114450.0,114440.0,1e-08]
[1760288771606,5.55030959,114450.0,114440.0,1e-08]
[1760288771822,5.52015769,114450.0,114440.0,1e-08]
[1760288772029,5.55030959,114450.0,114440.0,1e-08]
[1760288772503,5.68522689,114410.0,114400.0,0.07162362]
[1760288772729,5.23058689,114410.0,114400.0,0.07162362]
[1760288772971,0.51482517,114400.0,114390.0,0.00261837]
[1760288773182,0.56018517,114400.0,114390.0,0.00261837]
[1760288773446,5.39433217,114400.0,114390.0,0.00261837]
[1760288773898,0.17487103,114370.0,114360.0,0.04196]
[1760288774129,0.17487103,114370.0,114360.0,0.04210922]
[1760288774353,0.38396103,114370.0,114360.0,0.04210922]
[1760288774569,0.72396103,114370.0,114360.0,0.04210922]
[1760288775177,0.73212043,114370.0,114360.0,0.04210922]
[1760288775372,0.62414103,114370.0,114360.0,0.04210922]
[1760288775532,0.72396103,114370.0,114360.0,0.04210922]
[1760288776641,0.72396103,114370.0,114360.0,0.00014922]
[1760288776846,0.69769479,114370.0,114360.0,0.00014922]
[1760288780186,5.36811179,114370.0,114360.0,0.00014922]
[1760288781386,5.36811179,114370.0,114320.0,0.03433]
[1760288781387,0.17493221,114330.0,114320.0,0.03433]
[1760288781632,0.17494751,114320.0,114310.0,0.11362362]
[1760288781870,0.17494751,114320.0,114310.0,0.10728768]
[1760288782108,0.17494751,114320.0,114310.0,0.2822505]
[1760288782343,0.72403751,114320.0,114310.0,0.04249768]
[1760288782782,0.62421751,114320.0,114310.0,0.04249768]
[1760288784613,0.22902275,114340.0,114310.0,0.35650177]
[1760288784843,0.56029434,114330.0,114320.0,0.03433]
[1760288785054,0.62420434,114330.0,114320.0,0.03433]
[1760288785268,0.17494751,114320.0,114310.0,0.04249768]
[1760288785471,0.32012751,114320.0,114310.0,0.04249768]
[1760288785678,0.72403751,114320.0,114310.0,0.04700292]
[1760288786055,5.39445451,114320.0,114310.0,0.04700292]
[1760288786658,0.72403751,114320.0,114310.0,0.04700292]
[1760288789349,0.62421751,114320.0,114310.0,0.04700292]
[1760288789512,0.34,114320.0,114310.0,0.28407574]
[1760288789734,0.71738751,114320.0,114310.0,0.04700292]
[1760288790680,0.44619,114320.0,114310.0,0.22196574]
[1760288790858,0.62113751,114320.0,114310.0,0.04700292]
[1760288791129,0.62113751,114320.0,114310.0,0.22196574]
[1760288791250,0.22902275,114340.0,114310.0,0.35309574]
[1760288791458,0.22901642,114350.0,114330.0,0.03433]
[1760288791658,0.17491691,114340.0,114330.0,0.20926221]
[1760288791868,0.38610275,114340.0,114310.0,0.04249768]
[1760288792086,0.22043751,114320.0,114310.0,0.04249768]
[1760288792304,0.37738751,114320.0,114310.0,0.04249768]
[1760288793391,5.38780451,114320.0,114310.0,0.04249768]
[1760288794428,5.38780451,114320.0,114310.0,0.00049768]
[1760288794626,1.56618082,114310.0,114300.0,1e-08]
[1760288794849,5.26102172,114310.0,114300.0,0.00014937]
[1760288795050,5.32172172,114310.0,114300.0,0.00014937]
[1760288795253,5.41797172,114310.0,114300.0,0.00014937]
[1760288795386,0.74755472,114310.0,114300.0,0.00014937]
[1760288795590,5.41797172,114310.0,114300.0,0.00014937]
[1760288796007,5.41897172,114310.0,114300.0,0.00014937]